Workbook

Sheet Arbeitszeit
C2: Tour ausfüllen: | D2: Format hh:mm | E2: AB / Pause / AE | I2: Berechnung in Minuten | J2: Industriestunden | M2: Zulagen berechnet für:
H3: hh:mm | I3: Minuten | J3: IND h | M3: =WEEKDAY($N$3) -> 1900-01-06 | N3: =TODAY() -> 2020-11-27 | R3: =DATE(YEAR($N$3),MONTH($N$3),DAY($N$3)) -> 2020-11-27 | S3: wenn Feiertag = So | T3: =IF(ISNA(VLOOKUP($R$3,Feiertage,1,0))=TRUE,WEEKDAY($R$3),IF(VLOOKUP($R$3,Feiertage,3,0)=1,1,WEEKDAY($R$3))) -> 1900-01-06
C4: Berechnung | G4: Arbeitsschicht AS | H4: =IF($I$4="","",$I$4/1440) -> 08:53:00 | I4: =IF(AND(ISNUMBER($D$5),ISNUMBER($D$10)),IF($D$5<$D$10,($D$10-$D$5)*1440,(1-$D$5+$D$10)*1440),"") -> 533 | J4: =IF(ISERROR($I$4/60),"",$I$4/60) -> 8.883333333 | R4: =DATE(YEAR($N$3),MONTH($N$3),DAY($N$3))+1 -> 2020-11-28 | S4: wenn Feiertag = So | T4: =IF(ISNA(VLOOKUP($R$4,Feiertage,1,0))=TRUE,WEEKDAY($R$4),IF(VLOOKUP($R$4,Feiertage,3,0)=1,1,WEEKDAY($R$4))) -> 1900-01-07
B5: =WEEKDAY(N3) -> 1900-01-06 | C5: Arbeitsbeginn | D5: 16:30:00 | F5: =IF(AND(ISNUMBER($D$5),ISNUMBER($D$10)),ROUND($I$4-$E$13-$E$14,0),0) -> 388 | G5: =IF($I$4="","Arbeitszeit",IF(AND($I$5>0,$I$4-$E$13-$E$14<360),"Arbeitszeit = nur "&$F$5&"' >> 360'","Arbeitszeit")) -> Arbeitszeit | H5: =$I$5/1440 -> 06:28:00 | I5: =ROUND(IF($I$4="",0,IF($F$5<360,360,$F$5)),0) -> 388 | J5: =$I$5/60 -> 6.466666667 | M5: =IF($B$5=7,"Zulage für Nachtarbeit 18:00 - 06:00","Zulage für Nachtarbeit 20:00 - 06:00") -> Zulage für Nachtarbeit 20:00 - 06:00 | R5: Feiertage:
C6: Pause 1 von | D6: 20:00:00 | F6: =IF($A$16=1,0,IF(AND($E$13>=180,$A$17=2),0,IF($E$13>60,$E$13-60,0))+IF(AND($E$14>=180,$A$18=2),0,IF(AND($E$13>60,$E$13<180),$E$14,IF(AND($E$13>0,$E$13<=60,$E$14>0),$E$13+$E$14-60,0)))) -> 85 | G6: =IF($F$6<>$I$6,"Pausen > 60' LP = "&$F$6&"' - "&TEXT($F$6-$I$6,0),"Pausen > 60' LP") -> Pausen > 60' LP | I6: =IF(AND($F$5<360,$F$5+$F$6<=360),0,IF(AND($F$5<360,$F$5+$F$6>360),$F$5+$F$6-360,$F$6)) -> 85 | J6: =$I$6/60 -> 1.416666667 | M6: =IF(AND(OR($D$5>$D$10,$D$5=0),$D$10<=6/24),$D$10,IF(AND($D$5>$D$10,$D$10>6/24),6/24,IF(AND($D$5<6/24,$D$10>6/24),6/24-$D$5,IF(AND($D$5<6/24,$D$10<=6/24),$D$10-$D$5,0))))+IF($B$5<7,IF($I$4="",0,IF(AND($D$5>20/24,$D$5<$D$10),$D$10-$D$5,IF($D$5>20/24,1-$D$5,IF($D$5>$D$10,4/24,IF($D$10>20/24,$D$10-20/24,0))))))+IF($B$5=7,IF($I$4="",0,IF(AND($D$5>18/24,$D$5<$D$10),$D$10-$D$5,IF($D$5>18/24,1-$D$5,IF($D$5>$D$10,6/24,IF($D$10>18/24,$D$10-18/24,0))))),0) -> 05:23:00 | N6: hh:mm | R6: =YEAR($N$3+1) -> 2020 | S6: Name | T6: Sonntag = 1
C7: Pause 1 bis | D7: 21:50:00 | F7: =IF(AND(A17=0,E13>0)," P? = Heim","") ->  | G7: Auswärtspausen (15%) | I7: =ROUND(IF(OR(AND($E$13>=180,$A$17=2),AND($A$17=1,$A$16=1)),$E$13*15%,IF(AND($A$17=1,$E$13>60,A16=1),$E$13*15%,IF(AND($A$17=1,$E$13>60),9,IF(AND($A$17=1,$E$13<=60),$E$13*15%,0))))+IF(OR(AND($E$14>=180,$A$18=2),AND($A$18=1,$A$16=1)),$E$14*15%,IF(AND($A$18=1,$E$14>60,$A$16=1),$E$14*15%,IF(AND($A$18=1,$E$14>0,$E$13<=60),(60-$E$13)*15%,0))),1) -> 9 | J7: =$I$7/60 -> 0.15 | M7: =ROUND($M$6*24,2) -> 5.38 | N7: 6 | O7: =ROUND($M$7*$N$7*2,1)/2 -> 32.3 | R7: =DATE($R$6,1,1) -> 2020-01-01 | S7: Neujahr | T7: 1
C8: Pause 2 von | D8: 22:00:00 | G8: ND 1 (0:00 - 4:00 / 5:00 30%) | I8: =ROUND(IF(AND(OR($D$5>$D$10,$D$5=0),$D$10<=5/24),$D$10*432,IF(AND($D$5>$D$10,$D$10>5/24),90,IF(AND($D$5<4/24,$D$10>5/24),(5/24-$D$5)*432,IF(AND($D$5<4/24,$D$10<=5/24),($D$10-$D$5)*432,0))))-IF(AND($D$6>$D$7,$D$7<=5/24),$D$7*432,IF(AND($D$6<$D$7,$D$6<=5/24,$D$7<=5/24),($D$7-$D$6)*432,IF(AND($D$6<$D$7,$D$6<=5/24),(5/24-$D$6)*432,IF(AND($D$6>$D$7,$D$7>=5/24),90,0))))-IF(AND($D$8>$D$9,$D$9<=5/24),$D$9*432,IF(AND($D$8<$D$9,$D$8<=5/24,$D$9<=5/24),($D$9-$D$8)*432,IF(AND($D$8<$D$9,$D$8<=5/24),(5/24-$D$8)*432,IF(AND($D$8>$D$9,$D$9>=5/24),90,0))))+$E$15*30%,1) -> 24.9 | J8: =$I$8/60 -> 0.415 | R8: =DATE($R$6,1,2) -> 2020-01-02 | S8: Berchtoldstag | T8: 1
C9: Pause 2 bis | D9: 22:35:00 | F9: =IF(AND(A18=0,E14>0)," P? = Heim","") ->  | G9: ND LF (0:00 - 6:00 10%) | I9: =IF($A$16=1,0,ROUND(IF(AND(OR($D$5>$D$10,$D$5=0),$D$10<=6/24),$D$10*144,IF(AND($D$5>$D$10,$D$10>6/24),36,IF(AND($D$5<6/24,$D$10<=6/24),($D$10-$D$5)*144,IF($D$5<6/24,(6/24-$D$5)*144,0))))-IF(AND($D$6>$D$7,$D$7<=6/24),$D$7*144,IF(AND($D$6<$D$7,$D$6<=6/24,$D$7<=6/24),($D$7-$D$6)*144,IF(AND($D$6<$D$7,$D$6<=6/24),(6/24-$D$6)*144,IF(AND($D$6>$D$7,$D$7>=6/24),36,0))))-IF(AND($D$8>$D$9,$D$9<=6/24),$D$9*144,IF(AND($D$8<$D$9,$D$8<=6/24,$D$9<=6/24),($D$9-$D$8)*144,IF(AND($D$8<$D$9,$D$8<=6/24),(6/24-$D$8)*144,IF(AND($D$8>$D$9,$D$9>=6/24),36,0))))+$E$15*10%,1)) -> 8.3 | J9: =$I$9/60 -> 0.1383333333 | R9: =R10-2 -> 2020-04-10 | S9: Karfreitag | T9: 1
B10: =IF(AND(ISNUMBER($D$5),ISNUMBER($D$10),$D$5>$D$10),WEEKDAY($N$3+1),"") -> 1900-01-07 | C10: Arbeitsende | D10: 01:23:00 | G10: ND 2 (20:00 - 0:00 10%) | I10: =ROUND(IF($I$4="",0,IF(AND($D$5>20/24,$D$5<$D$10),($D$10-$D$5)*144,IF($D$5>20/24,(1-$D$5)*144,IF($D$5>$D$10,24,IF($D$10>20/24,($D$10-20/24)*144,0)))))-IF(AND($D$6<=20/24,$D$7<$D$6),24,IF(AND($D$6<20/24,$D$7<20/24),0,IF(AND($D$6<=20/24,$D$7>20/24),($D$7-20/24)*144,IF(AND($D$6>20/24,$D$7>20/24),($D$7-$D$6)*144,IF(AND($D$7<$D$6,$D$6>20/24),(1-$D$6)*144,0)))))-IF(AND($D$8<=20/24,$D$9<$D$8),24,IF(AND($D$8<20/24,$D$9<20/24),0,IF(AND($D$8<=20/24,$D$9>20/24),($D$9-20/24)*144,IF(AND($D$8>20/24,$D$9>20/24),($D$9-$D$8)*144,IF(AND($D$9<$D$8,$D$8>20/24),(1-$D$8)*144,0))))),1) -> 9.5 | J10: =$I$10/60 -> 0.1583333333 | M10: Sonntagszulage | R10: =DOLLAR((DAY(MINUTE($R$6/38)/2+55)&".4."&$R$6)/7,)*7-6 -> 2020-04-12 | S10: Ostersonntag | T10: 1
C11: =IF(OR(AND(E13<180,A17=2),AND(E14<180,A18=2))," Pause < 180' = keine Übernachtung: Pausenart ändern!",IF(OR(AND(E13>=180,A17=1),AND(E14>=180,A18=1))," Bei Auswärtspause Übernachtung: Pausenart ändern!","")) ->  | G11: Arbeitszeit Total | H11: =I11/1440 -> 0.364375 | I11: =SUM($I$5:$I$10) -> 524.7 | J11: =SUM($J$5:$J$10) -> 8.745 | M11: =IF(ISNA(VLOOKUP($R$3,Feiertage,1,0))=TRUE,"Arbeitsbeginn = "&TEXT(WEEKDAY($R$3),"TTTT"),IF(VLOOKUP($R$3,Feiertage,3,0)=1,"Arbeitsbeginn = Feiertag","")) -> Arbeitsbeginn = Freitag | R11: =R10+1 -> 2020-04-13 | S11: Ostermontag | T11: 1
C12: =IF(A16=1,"",IF(OR(AND(E13>0,E13<30),AND(E14>0,E14<30))=TRUE,"Lf-Pause ist kleiner 30min: Zeitangaben löschen !",IF(AND(E13=0,E14>0),"Pause 1 fehlt !",""))) ->  | M12: =IF(ISNA(VLOOKUP($R$4,Feiertage,1,0))=TRUE,"Arbeitsende = "&TEXT(WEEKDAY($R$4),"TTTT"),IF(VLOOKUP($R$4,Feiertage,3,0)=1,"Arbeitsende = Feiertag","")) -> Arbeitsende = Samstag | R12: =R10+39 -> 2020-05-21 | S12: Auffahrt | T12: 1
C13: Pause 1 | D13: in Minuten | E13: =IF(OR(D6="",D7=""),0,ROUND(IF(D6<D7,(D7-D6)*1440,IF(D6>D7,(1-D6+D7)*1440)),0)) -> 110 | G13: Arbeitszeit Total aufgerundet >> PIPER | H13: =ROUND(I13,0)/1440 -> 0.3645833333 | I13: =ROUNDUP(SUM($I$5:$I$10),0) -> 525 | J13: =I13/60 -> 8.75 | M13: =(IF($I$4="",,IF($D$5="",0,IF($T$3=1,(IF($D$5<$D$10,$D$10-$D$5,1-$D$5)-IF(AND($D$5>$D$10,$D$6<$D$7,$D$6<$D$5),0,IF($D$6<$D$7,$D$7-$D$6,IF($D$6>$D$7,1-$D$6,0)))-IF(AND($D$5>$D$10,$D$8<$D$9,$D$8<$D$5),0,IF($D$8<$D$9,$D$9-$D$8,IF($D$8>$D$9,1-$D$8,0)))),0))+IF(AND($T$4=1,$D$5>$D$10),($D$10-IF(AND($D$5>$D$10,$D$6<$D$7,$D$6<$D$5),$D$7-$D$6,IF($D$6>$D$7,$D$7,0))-IF(AND($D$5>$D$10,$D$8<$D$9,$D$8<$D$5),$D$9-$D$8,IF($D$8>$D$9,$D$9,0))),0))+IF(AND($T$3=1,$D$5<5/24,$I$5>0),$E$15/1440,0)+IF(AND($D$5>$D$10,$T$4=1),$E$15/1440,0)) -> 00:00:00 | N13: hh:mm | R13: =R10+49 -> 2020-05-31 | S13: Pfingstsonntag | T13: 1
C14: Pause 2 | D14: in Minuten | E14: =IF(OR(D8="",D9=""),0,ROUND(IF(D8<D9,(D9-D8)*1440,IF(D8>D9,(1-D8+D9)*1440)),0)) -> 35 | M14: =ROUND($M$13*24,2) -> 0 | N14: 16 | O14: =ROUND($M$14*$N$14*2,1)/2 -> 0 | R14: =R10+50 -> 2020-06-01 | S14: Pfingstmontag | T14: 1
C15: P > 60' von 00:00 - 05:00 h | E15: =ROUND((IF(AND(E13>=180,A17=2),0,IF(AND(E13>60,A16<>1),(IF(AND(D6>D7,(D6+1/24)<=1),D7,IF(AND(D6>D7,(D6+1/24)>1),(D7+1-(D6+1/24)),IF(AND(D6<=4/24,D7<=5/24),(D7-(D6+1/24)),IF(AND((D6+1/24)<=5/24,D7>5/24),(5/24-(D6+1/24)),0))))),0))+IF(AND(E14>=180,A18=2),0,IF(A16<>1,IF(AND(D8>D9,E13<=60,(D8-E13/1440+1/24)>1),(D9-(D8-E13/1440-23/24)),IF(OR(AND(D8>D9,E13<=60,(D8-E13/1440+1/24)<=1),AND(D8>D9,E13>60)),D9,IF(AND(D8<5/24,D9>=5/24,E13<60),(5/24-(D8-E13/1440+1/24)),IF(AND(D8<5/24,D9>=5/24,E13>=60),(5/24-D8),IF(AND(E14>0,D8<5/24,D9<5/24,E13<60),(D9-(D8-E13/1440+1/24)),IF(AND(E14>0,D8<5/24,D9<5/24,E13>=60),(D9-D8),0)))))))))*1440,0) -> 0 | G15: Nachtdienst 3 (> 55j.) in Min. | H15: =IF($I$4="",0,$I$8/3) -> 8.3 | I15: =IF($I$4="",0,ROUNDUP($I$8/3,0)) -> 9 | J15: =$H$15/60 -> 0.1383333333 | R15: =R10+60 -> 2020-06-11 | S15: Fronleichnam | T15: 0
A16: 2 | C16: =IF(AND(ISNUMBER($D$5),ISNUMBER($D$6),D6-D5+N(D6<D5)<1/16),"AB bis zur Pause nicht 90 Minuten !","") ->  | G16: Berechnungen IND h ohne Rundung | R16: =DATE($R$6,8,1) -> 2020-08-01 | S16: 1. August | T16: 1
A17: 1 | R17: =DATE($R$6,11,1)+7*4-MOD(DATE($R$6,11,1)+4,7)-1 -> 2020-11-23 | S17: Zibelemärit | T17: 0
A18: 1 | C18: =IF($I$5>540,"Hinweis AZ > 540': Keine zwei solchen Touren in Folge / AS maximal 11 Std. / Tour nicht 24:00 - 04:00","") ->  | R18: =DATE($R$6,12,25) -> 2020-12-25 | S18: Weihnachten | T18: 1
A19: 2 | C19: =IF($I$5>540,"Abweichungen sind im Rahmen betriebliche Mitwirkung (Mitentscheid) oder in Absprache mit dem betroffenen Personal möglich","") ->  | R19: =DATE($R$6,12,26) -> 2020-12-26 | S19: Stephanstag | T19: 1
C20: Alle Angaben ohne Gewähr ! | M20: © Christian Meyer Lf SBB Bern | T20: 1
B22: Legende:
B23: Arbeitsbeginn / -ende | D23: 00:00 | E23: Zellformat hh:mm
B24: Zelle Eingabe möglich | D24: X | E24: Diverse Eingaben oder Auswahl
B25: Stunden:Minuten / Min. | D25: 00:00 / 0.00 | E25: Zellformat hh:mm oder Minuten 0.00
B26: Industriestunden | D26: 0.00 | E26: Ungerundet, Anzeige 2 oder 6 Stellen nach Komma / Für Zulagen in Spalte M = 2 Stellen gerundet
B27: Berechnung von Zulagen | D27: 0.001 | E27: Zellformat Buchhaltung
B28: Hinweis 1 | D28: Abc | E28: z.B. Feiertag
B29: Hinweis 2 | D29: Abc | E29: Pause / Arbeitszeit
B30: Hinweis 3 | D30: Abc | E30: Pause / Übernachtung
B31: Hinweis 4 | D31: Abc | E31: Pause Art nicht ausgewählt = Pause "Heim"
B33: Hinweise:
B34: Damit die Funktionen [Daten löschen / Kalender / Heute] + "Rundung IND h" bedienbar sind: Sicherheitswarnung > Inhalt aktivieren (Makros VBA zulassen)
B36: Version 3 vom 01.12.2019
B37: Änderungen:
B38: - Anpassung Auswärtspause 15% statt Zuschlag
B39: - Pausen für "Andere" statt "Lokführer" > Möglicherweise fehlerhaft und nicht überprüft

Sheet Umrechnungen
B2: Umrechnung hh:mm <> Industriestunden | G2: Sekunden | H2: Ind. Stunden | I2: Ind. X XX
B3: hh:mm | D3: IND H X.XX | G3: 36 | H3: 0.01 | I3: 0.01
B4: 0.3826388889 | C4: > > | D4: =B4*24 -> 9.183333333 | G4: Minuten | H4: Ind. Stunden | I4: Ind. X XX
B5: =D5/24 -> 0.3575 | C5: < < | D5: 8.58 | G5: =H5*60 -> 0.6 | H5: 0.01 | I5: 0.01
B6: Minuten | C6: < > | D6: IND H X.XX | G6: =H6*60 -> 1.2 | H6: 0.02 | I6: 0.02
B7: 1 | C7: > > | D7: =B7/60 -> 0.01666666667 | G7: 1 | H7: =ROUND(G7/60,8) -> 0.01666667 | I7: =G7/60 -> 0.01666666667
B8: =D8*60 -> 60 | C8: < < | D8: 1 | G8: 2 | H8: =ROUND(G8/60,8) -> 0.03333333 | I8: =G8/60 -> 0.03333333333
B9: von hh:mm | C9: bis hh:mm | G9: =H9*60 -> 2.4 | H9: 0.04 | I9: 0.04
B10: 18:00:00 | C10: 01:18:00 | G10: 3 | H10: 0.05 | I10: 0.05
B11: =IF(C10>B10,C10-B10,1-B10+C10) -> 07:18:00 | C11: < hh:mm | G11: 4 | H11: 0.06666667 | I11: 0.06666666667
C12: IND H X.XX > | D12: =IF(C10>B10,(C10-B10)*24,(1-B10+C10)*24) -> 7.3 | G12: 5 | H12: 0.08333333 | I12: 0.08333333333
C13: IND H unger. > | D13: =IF(C10>B10,(C10-B10)*24,(1-B10+C10)*24) -> 7.3 | G13: 6 | H13: 0.1 | I13: 0.1
G14: 7 | H14: 0.11666667 | I14: 0.1166666667
B15: X | C15: > Zellen Eingaben möglich | G15: 8 | H15: 0.13333333 | I15: 0.1333333333
G16: 9 | H16: 0.15 | I16: 0.15
G17: 10 | H17: 0.16666667 | I17: 0.1666666667
G18: 15 | H18: 0.25 | I18: 0.25
G19: 20 | H19: 0.33333333 | I19: 0.3333333333
G20: 25 | H20: 0.41666667 | I20: 0.4166666667
G21: 30 | H21: 0.5 | I21: 0.5
G22: 45 | H22: 0.75 | I22: 0.75
G23: 59 | H23: 0.98333333 | I23: 0.9833333333
G24: 60 | H24: 1 | I24: 1
